bitfinex/quotes_SOLUSD_20240604
["timestamp","ask_amount","ask_price","bid_price","bid_amount"]
[1717487206348,2.2342,165.61,165.56,2.2347]
[1717487206829,9.2642,165.61,165.56,2.2347]
[1717487208145,7.03,165.6,165.56,2.2347]
[1717487209952,7.03,165.6,165.57,2.2346]
[1717487210453,7.03,165.6,165.56,2.2347]
[1717487210657,9.2642,165.61,165.56,2.2347]
[1717487211227,9.2642,165.61,165.57,2.2346]
[1717487211549,9.264,165.62,165.57,2.2346]
[1717487212630,2.234,165.62,165.57,122.2346]
[1717487212850,2.234,165.62,165.58,2.2345]
[1717487213037,7.03,165.63,165.59,2.2343]
[1717487213239,2.2337,165.64,165.59,2.2343]
[1717487213458,9.2637,165.64,165.59,2.2343]
[1717487213835,2.2339,165.63,165.59,2.2343]
[1717487214136,9.2638,165.64,165.59,2.2343]
[1717487218929,2.2338,165.64,165.59,2.2343]
[1717487219146,9.2638,165.64,165.59,2.2343]
[1717487219753,2.2338,165.64,165.59,2.2343]
[1717487219975,9.2638,165.64,165.59,2.2343]
[1717487220348,2.2338,165.64,165.59,2.2343]
[1717487220557,9.2638,165.64,165.59,2.2343]
[1717487221354,2.2338,165.64,165.6,2.2342]
[1717487221543,7.03,165.63,165.59,2.2343]
[1717487222057,9.2638,165.64,165.59,2.2343]
[1717487222437,2.2338,165.64,165.59,2.2343]
[1717487222655,7.03,165.63,165.59,2.2343]
[1717487222859,7.03,165.63,165.6,2.2342]
[1717487223038,2.2338,165.64,165.6,2.2342]
[1717487223551,7.03,165.64,165.6,2.2342]
[1717487224135,9.2637,165.64,165.59,2.2343]
[1717487225158,7.03,165.63,165.59,2.2343]
[1717487225666,2.2337,165.64,165.59,2.2343]
[1717487225842,7.03,165.63,165.59,2.2343]
[1717487228669,9.2637,165.64,165.59,2.2343]
[1717487229264,2.2337,165.64,165.6,2.2342]
[1717487229559,9.2637,165.64,165.6,2.2342]
[1717487230575,9.2638,165.63,165.59,2.2344]
[1717487230774,7.03,165.62,165.58,2.2344]
[1717487231252,2.2338,165.63,165.58,2.2344]
[1717487231439,7.03,165.62,165.58,2.2344]
[1717487231638,9.264,165.62,165.58,2.2344]
[1717487231871,7.03,165.61,165.57,2.2346]
[1717487232284,7.03,165.59,165.56,2.2348]
[1717487233373,7.03,165.59,165.55,2.2349]
[1717487235875,7.03,165.59,165.56,2.2348]
[1717487237072,7.03,165.59,165.55,2.2349]
[1717487237241,7.03,165.58,165.55,2.2349]
[1717487237861,7.03,165.57,165.54,2.235]
[1717487238362,7.03,165.57,165.55,2.2349]
[1717487238577,7.03,165.58,165.55,2.2349]
[1717487239149,7.03,165.59,165.55,2.2349]
[1717487239448,2.2341,165.61,165.56,2.2347]
[1717487239664,2.234,165.62,165.57,2.2346]
[1717487239838,9.264,165.62,165.57,2.2346]
[1717487241073,2.234,165.62,165.57,2.2346]
[1717487241260,9.264,165.62,165.57,2.2346]
[1717487241675,2.2341,165.61,165.57,2.2346]
[1717487241867,2.2341,165.61,165.56,135.5953]
[1717487242165,2.2341,165.61,165.57,0.17]
[1717487243963,2.2339,165.63,165.58,2.2345]
[1717487244166,7.03,165.63,165.59,2.2344]
[1717487244478,9.2639,165.63,165.58,2.2345]
[1717487248512,7.03,165.62,165.58,2.2345]
[1717487249181,7.03,165.62,165.59,2.2344]
[1717487252196,7.03,165.61,165.58,2.2345]
[1717487252395,7.03,165.6,165.58,2.2345]
[1717487252903,7.03,165.6,165.57,2.2346]
[1717487253120,7.03,165.59,165.55,0.17]
[1717487253402,7.03,165.59,165.56,2.2347]
[1717487253609,7.03,165.58,165.56,2.2347]
[1717487253905,7.03,165.58,165.55,0.34]
[1717487253906,7.03,165.58,165.55,2.5749]
[1717487254485,7.03,165.58,165.53,10.7642]
[1717487254486,7.03,165.57,165.54,2.235]
[1717487255005,28.12,165.6,165.54,2.235]
[1717487255196,2.2345,165.59,165.54,2.235]
[1717487255503,2.2345,165.58,165.53,2.2351]
[1717487256385,4.4694,165.57,165.49,121.05106949]
[1717487256596,7.03,165.52,165.46,120.0]
[1717487256793,7.03,165.5,165.49,1.05108053]
[1717487257108,7.03,165.5,165.47,2.2359]
[1717487257313,6.53988901,165.57,165.46,2.2361]
[1717487257314,7.03,165.49,165.46,2.2361]
[1717487257521,7.03,165.49,165.43,7.03]
[1717487257522,7.03,165.48,165.45,3.28753999]
[1717487257814,7.03,165.48,165.45,1.05133999]
[1717487258714,7.03,165.49,165.45,1.05133999]
[1717487259214,7.03,165.49,165.46,2.2361]
[1717487259911,7.03,165.49,165.47,2.236]
[1717487260411,7.03,165.49,165.46,2.2361]
[1717487260600,2.2352,165.53,165.47,2.236]
[1717487260917,7.03,165.52,165.49,2.2356]
[1717487261427,7.03,165.51,165.49,2.2356]
[1717487267331,7.03,165.5,165.48,2.2358]
[1717487268120,7.03,165.5,165.49,2.2357]
[1717487269710,2.2351,165.54,165.49,2.2357]
[1717487270035,7.03,165.5,165.49,2.2357]
[1717487274144,2.236,165.48,165.45,1.05133999]
[1717487274434,2.2356,165.5,165.45,2.2363]
[1717487274606,34.2636,165.52,165.45,2.2363]
[1717487274810,7.03,165.46,165.45,2.2363]
[1717487275618,2.07048901,165.51,165.45,2.2363]
[1717487275815,7.03,165.46,165.45,2.2363]
[1717487278226,2.2355,165.51,165.46,2.2361]
[1717487278431,7.03,165.48,165.46,2.2361]
[1717487279443,7.03,165.48,165.45,2.2362]
[1717487280548,2.2355,165.51,165.46,2.2361]
[1717487280844,7.03,165.49,165.47,2.236]
[1717487281224,7.03,165.49,165.46,2.2361]
[1717487281424,2.2354,165.52,165.46,2.2361]
[1717487281645,7.03,165.49,165.46,2.2361]
[1717487282743,2.2352,165.53,165.46,120.0]
[1717487282944,6.6015,165.56,165.5,2.2355]
[1717487282945,8.8364,165.56,165.5,2.2355]
[1717487283252,6.6015,165.56,165.5,2.2355]
[1717487283425,7.03,165.53,165.5,2.2355]
[1717487284028,7.03,165.52,165.49,2.2357]
[1717487284225,2.235,165.55,165.49,2.2357]
[1717487284551,7.03,165.52,165.49,2.2357]
[1717487284850,2.235,165.55,165.5,2.2356]
[1717487285153,7.03,165.53,165.51,2.2355]
[1717487285545,2.2348,165.56,165.51,2.2355]
[1717487285856,7.03,165.54,165.51,2.2355]
[1717487286654,2.2347,165.57,165.52,2.2353]
[1717487286826,7.03,165.55,165.52,2.2353]
[1717487288028,7.03,165.55,165.51,2.2354]
[1717487289242,2.2346,165.58,165.52,2.2353]
[1717487289455,2.2347,165.57,165.52,2.2353]
[1717487289629,7.03,165.56,165.52,2.2353]
[1717487290465,23.2168,165.63,165.52,120.0]
[1717487290758,7.03,165.59,165.55,2.2349]
[1717487291129,7.03,165.59,165.54,120.0]
[1717487291333,7.03,165.62,165.56,7.03]
[1717487291545,2.2337,165.64,165.56,127.03]
[1717487291750,7.03,165.62,165.58,2.2344]
[1717487291949,7.03,165.62,165.59,2.2344]
[1717487292161,7.03,165.63,165.59,2.2344]
[1717487293361,7.03,165.63,165.58,2.2345]
[1717487293869,7.03,165.63,165.59,2.2344]
[1717487294958,2.2336,165.65,165.59,2.2344]
[1717487295261,7.03,165.63,165.6,2.2342]
[1717487296158,7.03,165.64,165.6,2.2342]
[1717487296538,2.2335,165.66,165.61,8.8019]
[1717487296739,9.2635,165.66,165.61,8.8019]
[1717487296939,7.03,165.66,165.61,8.8019]
[1717487297235,7.03,165.65,165.61,8.8019]
[1717487297465,7.03,165.65,165.61,6.5678]
[1717487297644,7.03,165.65,165.61,8.8019]
[1717487299163,2.2333,165.67,165.62,2.234]
[1717487299373,7.03,165.65,165.62,2.234]
[1717487299577,7.03,165.65,165.61,8.8019]
[1717487303856,2.2333,165.67,165.62,2.234]
[1717487304166,7.03,165.66,165.62,2.234]
[1717487304554,9.2635,165.66,165.61,8.5036]
[1717487305351,7.03,165.66,165.62,2.2339]
[1717487307984,2.2332,165.68,165.63,2.2338]
[1717487308279,7.03,165.67,165.63,2.2338]
[1717487308657,2.233,165.69,165.64,2.2336]
[1717487308857,7.03,165.68,165.64,2.2336]
[1717487309954,2.2332,165.68,165.63,2.2338]
[1717487310151,7.03,165.65,165.62,2.234]
[1717487310379,7.03,165.64,165.62,2.234]
[1717487310557,7.03,165.65,165.63,2.2338]
[1717487311253,7.03,165.64,165.6,6.1747]
[1717487311477,9.2639,165.63,165.59,2.2344]
[1717487311678,7.03,165.61,165.58,2.2345]
[1717487312373,7.03,165.6,165.57,2.2346]
[1717487312577,7.03,165.59,165.57,2.2346]
[1717487312778,7.03,165.6,165.58,2.2345]
[1717487313354,7.03,165.61,165.58,2.2345]
[1717487314269,7.03,165.6,165.58,2.2345]
[1717487314783,7.03,165.59,165.56,2.2347]
[1717487314981,7.03,165.58,165.56,2.2347]
[1717487315190,7.03,165.58,165.52,120.0]
[1717487315490,7.03,165.58,165.55,2.2349]
[1717487320184,7.03,165.57,165.55,2.2349]
[1717487320368,7.03,165.57,165.54,2.235]
[1717487321161,7.03,165.56,165.53,2.2352]
[1717487321497,7.03,165.55,165.53,2.2352]
[1717487322285,7.03,165.55,165.52,2.2353]
[1717487322480,7.03,165.54,165.51,2.2354]
[1717487322686,7.03,165.53,165.51,2.2354]
[1717487323172,7.03,165.52,165.5,2.2355]
[1717487323372,7.03,165.51,165.49,2.2357]
[1717487325696,8.2624,165.54,165.49,2.2357]
[1717487325988,7.03,165.51,165.49,2.2357]
[1717487326672,7.03,165.5,165.49,2.2357]
[1717487327397,7.03,165.5,165.47,2.2359]
[1717487327600,2.2354,165.52,165.47,2.2359]
[1717487327601,7.03,165.49,165.47,2.2359]
[1717487327771,7.03,165.49,165.48,2.2359]
[1717487328189,7.03,165.49,165.47,2.236]
[1717487335295,7.03,165.5,165.47,2.236]
[1717487338813,7.03,165.49,165.46,2.2361]
[1717487339685,2.2354,165.52,165.47,2.236]
[1717487340034,2.2344,165.59,165.54,2.235]
[1717487340183,6.5334,165.57,165.49,4.4714]
[1717487340380,2.2349,165.56,165.51,2.2354]
[1717487340585,6.5334,165.57,165.53,2.2351]
[1717487340801,7.03,165.56,165.53,2.2351]
[1717487341112,7.03,165.56,165.54,2.235]
[1717487341614,7.03,165.56,165.53,2.2352]
[1717487342312,2.2345,165.58,165.53,2.2352]
[1717487342613,22.07,165.61,165.54,2.235]
[1717487342614,7.03,165.57,165.54,2.235]
[1717487342817,7.03,165.58,165.54,2.235]
[1717487346201,9.2645,165.58,165.54,2.235]
[1717487346398,9.2645,165.58,165.53,2.2351]
[1717487346715,9.2647,165.57,165.53,2.2351]
[1717487346894,7.03,165.55,165.51,2.2354]
[1717487347891,7.03,165.55,165.52,2.2353]
[1717487348402,7.03,165.56,165.52,2.2353]
[1717487348593,9.2648,165.56,165.52,2.2353]
[1717487348795,7.03,165.56,165.52,2.2353]
[1717487350019,2.2348,165.56,165.51,2.2354]
[1717487350317,7.03,165.55,165.51,2.2354]
[1717487351199,2.2349,165.55,165.47,120.0]
[1717487351400,7.03,165.52,165.48,2.2358]
[1717487352204,7.03,165.52,165.49,2.2357]
[1717487353404,7.03,165.52,165.46,7.03]
[1717487353405,7.03,165.52,165.48,2.2358]
[1717487353608,2.2352,165.53,165.48,2.2358]
[1717487353913,7.03,165.52,165.48,2.2358]
[1717487354415,9.2654,165.52,165.47,2.236]
[1717487354618,7.03,165.51,165.45,11.5024]
[1717487354797,7.03,165.51,165.47,2.2359]
[1717487355204,9.2655,165.51,165.46,2.4061]
[1717487355422,7.03,165.51,165.45,7.03]
[1717487355618,7.03,165.51,165.43,11.1825]
[1717487355619,2.2355,165.51,165.46,2.2361]
[1717487355802,9.2657,165.49,165.45,2.2362]
[1717487356133,10.49,165.53,165.45,2.2362]
[1717487356134,7.03,165.48,165.45,2.2363]
[1717487356320,7.03,165.48,165.46,2.2361]
[1717487356624,7.03,165.49,165.46,2.2361]
[1717487357925,7.03,165.49,165.45,2.2362]
[1717487359912,7.03,165.48,165.45,2.2362]
[1717487361528,13.445,165.52,165.42,2.2366]
[1717487361529,7.03,165.46,165.42,2.2366]
[1717487361733,2.2359,165.48,165.4,131.5039]
[1717487361915,7.03,165.47,165.43,2.2364]
[1717487362231,7.03,165.47,165.44,2.2364]
[1717487363617,2.2358,165.49,165.44,2.2364]
[1717487363829,7.03,165.47,165.44,2.2364]
[1717487364547,21.0969,165.51,165.5,177.6353]
[1717487364843,28.1269,165.51,165.5,177.6353]
[1717487366111,30.3624,165.51,165.5,177.6353]
[1717487367412,36.5224,165.51,165.5,177.6353]
[1717487369751,29.3368,165.55,165.5,177.6353]
[1717487370034,2.2354,165.52,165.5,177.6353]
[1717487370335,9.2654,165.52,165.5,177.6353]
[1717487370633,2.2354,165.52,165.5,177.6353]
[1717487370834,2.2352,165.54,165.5,177.6353]
[1717487371211,9.2652,165.54,165.5,177.6353]
[1717487371419,2.2352,165.54,165.5,177.6353]
[1717487371812,9.265,165.55,165.5,179.8709]
[1717487372020,2.2351,165.54,165.5,179.8709]
[1717487373645,2.2351,165.54,165.5,177.6353]
[1717487374942,9.2651,165.54,165.5,177.6353]
[1717487375365,9.2652,165.53,165.5,177.6353]
[1717487376156,7.03,165.53,165.5,177.6353]
[1717487376350,2.2351,165.54,165.5,177.6353]
[1717487376560,7.03,165.53,165.5,179.8709]
[1717487376956,9.2651,165.54,165.5,179.8709]
[1717487377271,7.03,165.54,165.5,179.8709]
[1717487377644,2.235,165.55,165.5,186.0339]
[1717487377839,9.265,165.55,165.5,186.0339]
[1717487378779,7.03,165.55,165.5,177.6353]
[1717487378947,9.2653,165.52,165.5,177.6353]
[1717487379276,9.2655,165.51,165.5,177.6353]
[1717487380477,7.03,165.51,165.5,177.6353]
[1717487380658,9.2653,165.52,165.5,177.6353]
[1717487385071,7.03,165.51,165.5,177.6353]
[1717487392777,2.2355,165.51,165.5,177.6353]
[1717487392966,9.2655,165.51,165.5,177.6353]
[1717487395665,2.2354,165.52,165.5,177.6353]
[1717487395855,7.03,165.51,165.5,177.6353]
[1717487397073,2.2355,165.51,165.5,177.6353]
[1717487397385,7.03,165.51,165.5,177.6353]
[1717487398078,9.2655,165.51,165.5,177.6353]
[1717487399681,2.2355,165.51,165.5,177.6353]
[1717487399886,9.2655,165.51,165.5,177.6353]
[1717487403194,7.03,165.51,165.5,177.6353]
[1717487403381,9.2655,165.51,165.5,177.6353]
[1717487403912,2.2355,165.51,165.5,177.6353]
[1717487404475,9.2655,165.51,165.5,177.6353]
[1717487404787,2.2354,165.52,165.5,177.6353]
[1717487405092,7.03,165.51,165.5,177.6353]
[1717487405280,7.03,165.52,165.5,177.6353]
[1717487405480,2.2352,165.53,165.5,177.6353]
[1717487405887,9.2652,165.53,165.5,177.6353]
[1717487406303,2.2351,165.54,165.5,177.6353]
[1717487406481,9.2652,165.53,165.5,177.6353]
[1717487407295,2.2351,165.54,165.5,177.6353]
[1717487407609,9.2651,165.54,165.5,177.6353]
[1717487407975,2.2351,165.54,165.51,1.20528842]
[1717487408187,9.2651,165.54,165.51,1.20528842]
[1717487408900,9.2648,165.57,165.53,6.3648]
[1717487409075,9.2648,165.57,165.54,45.0]
[1717487410095,2.2348,165.56,165.54,45.0]
[1717487410282,9.2648,165.56,165.54,45.0]
[1717487410484,7.03,165.55,165.51,8.6305]
[1717487410685,9.2649,165.55,165.52,45.0]
[1717487410892,7.03,165.54,165.52,45.0]
[1717487411204,7.03,165.54,165.51,6.3951]
[1717487411698,7.03,165.52,165.5,177.6353]
[1717487411903,7.03,165.51,165.5,177.6353]
[1717487412284,9.2655,165.51,165.5,177.6353]
[1717487414999,7.03,165.51,165.5,177.6353]
[1717487415490,2.2353,165.53,165.5,177.6353]
[1717487415697,9.2653,165.53,165.5,222.6353]
[1717487416685,9.2653,165.52,165.5,222.6353]
[1717487416883,7.03,165.51,165.5,177.6353]
[1717487418580,9.2655,165.51,165.5,177.6353]
[1717487419507,20.443,165.51,165.5,177.6353]
[1717487419888,13.7365,165.51,165.5,177.6353]
[1717487424089,2.2355,165.51,165.5,177.6353]
[1717487424304,9.2655,165.51,165.5,177.6353]
[1717487431616,2.2355,165.51,165.5,177.6353]
[1717487431811,9.2653,165.53,165.5,177.6353]
[1717487432606,2.2354,165.52,165.5,177.6353]
[1717487432994,4.4695,165.57,165.5,177.6353]
[1717487433196,9.2651,165.54,165.51,6.0095]
[1717487433497,7.03,165.54,165.52,6.0095]
[1717487433907,9.265,165.55,165.52,6.0095]
[1717487434216,2.2351,165.54,165.52,6.0095]
[1717487434632,9.265,165.55,165.52,6.0095]
[1717487435908,2.235,165.55,165.52,6.0095]
[1717487436137,7.03,165.57,165.52,6.449]
[1717487436435,2.2347,165.57,165.54,6.4963]
[1717487436640,9.2647,165.57,165.55,0.74105058]
[1717487436804,2.2347,165.57,165.55,0.74105058]
[1717487437421,2.2348,165.56,165.55,0.74105058]
[1717487437622,2.2348,165.56,165.52,8.772]
[1717487437834,9.2647,165.57,165.52,8.772]
[1717487438730,2.2348,165.56,165.52,8.772]
[1717487438934,9.2648,165.56,165.52,8.772]
[1717487439741,9.2647,165.57,165.53,6.5231]
[1717487440732,2.2347,165.57,165.53,6.5231]
[1717487440928,9.2647,165.57,165.53,6.5231]
[1717487442537,2.2348,165.56,165.53,6.5231]
[1717487443525,9.2647,165.57,165.53,6.5231]
[1717487443836,9.2651,165.54,165.5,184.0595]
[1717487444011,7.03,165.53,165.5,184.0595]
[1717487444214,7.03,165.53,165.5,186.2951]
[1717487444736,9.2651,165.54,165.5,186.2951]
[1717487445313,7.03,165.54,165.5,186.2951]
[1717487445729,9.2651,165.54,165.5,186.2951]
[1717487446539,9.2651,165.54,165.5,184.0595]
[1717487452019,9.2651,165.54,165.5,186.2951]
[1717487453529,2.2351,165.54,165.5,186.2951]
[1717487457734,2.2351,165.54,165.5,184.0595]
[1717487458048,9.2651,165.54,165.5,184.0595]
[1717487458241,2.2352,165.53,165.5,184.0595]
[1717487458644,7.03,165.51,165.5,177.6353]
[1717487458947,13.7365,165.51,165.5,177.6353]
[1717487460453,2.2355,165.51,165.5,177.6353]
[1717487460635,9.2655,165.51,165.5,177.6353]
[1717487466655,2.2355,165.51,165.5,177.6353]
[1717487466957,9.2655,165.51,165.5,177.6353]
[1717487469753,2.2355,165.51,165.5,177.6353]
[1717487469968,9.2655,165.51,165.5,177.6353]
[1717487470439,2.2355,165.51,165.5,177.6353]
[1717487470757,9.2655,165.51,165.5,177.6353]
[1717487470933,2.2355,165.51,165.5,177.6353]
[1717487471133,9.2655,165.51,165.5,177.6353]
[1717487471631,2.2355,165.51,165.5,177.6353]
[1717487471832,9.2655,165.51,165.5,177.6353]
[1717487472055,2.2355,165.51,165.5,177.6353]
[1717487476463,9.2655,165.51,165.5,177.6353]
[1717487477358,2.2355,165.51,165.5,177.6353]
[1717487477658,9.2655,165.51,165.5,177.6353]
[1717487477844,2.2355,165.51,165.5,177.6353]
[1717487479363,9.2655,165.51,165.5,177.6353]
[1717487481938,13.7365,165.51,165.5,177.6353]
[1717487482237,29.385,165.51,165.5,177.6353]
[1717487487066,13.413,165.51,165.5,177.6353]
[1717487487276,20.443,165.51,165.5,177.6353]
[1717487487764,13.413,165.51,165.5,177.6353]
[1717487487957,20.443,165.51,165.5,177.6353]
[1717487489951,6.7065,165.51,165.5,177.6353]
[1717487490149,13.7365,165.51,165.5,177.6353]
[1717487490572,20.443,165.51,165.5,177.6353]
[1717487492672,29.385,165.51,165.5,177.6353]
[1717487494557,22.355,165.51,165.5,177.6353]
[1717487494766,29.385,165.51,165.5,177.6353]
[1717487499675,22.355,165.51,165.5,177.6353]
[1717487499877,29.385,165.51,165.5,177.6353]
[1717487500375,2.2355,165.51,165.5,177.6353]
[1717487500551,2.0757736,165.51,165.5,177.6353]
[1717487506282,13.5767736,165.51,165.5,177.6353]
[1717487506467,29.2252736,165.51,165.5,177.6353]
[1717487507986,20.2832736,165.51,165.5,177.6353]
[1717487509558,13.2532736,165.51,165.5,177.6353]
[1717487509777,20.2832736,165.51,165.5,177.6353]
[1717487510878,29.2252736,165.51,165.5,177.6353]
[1717487532301,22.1952736,165.51,165.5,177.6353]
[1717487532482,29.2252736,165.51,165.5,177.6353]
[1717487534186,22.1952736,165.51,165.5,177.6353]
[1717487534381,29.2252736,165.51,165.5,177.6353]
[1717487536087,22.1952736,165.51,165.5,177.6353]
[1717487536289,29.2252736,165.51,165.5,177.6353]
[1717487541221,13.5767736,165.51,165.5,177.6353]
[1717487541385,2.0757736,165.51,165.5,177.6353]
[1717487541584,9.1057736,165.51,165.5,177.6353]
[1717487543000,2.0757736,165.51,165.5,177.6353]
[1717487543185,9.1057736,165.51,165.5,177.6353]
[1717487553920,2.0757736,165.51,165.5,177.6353]
[1717487554128,9.1057736,165.51,165.5,177.6353]
[1717487554310,2.0757736,165.51,165.5,177.6353]
[1717487557609,2.2354,165.52,165.5,184.2388]
[1717487557931,9.2654,165.52,165.5,184.2388]
[1717487558735,2.2355,165.51,165.5,184.2388]
[1717487562145,2.2355,165.51,165.5,177.6353]
[1717487562639,9.2655,165.51,165.5,177.6353]
[1717487563315,2.2355,165.51,165.5,177.6353]
[1717487566837,9.2655,165.51,165.5,177.6353]
[1717487567660,2.2355,165.51,165.5,177.6353]
[1717487568245,9.2655,165.51,165.5,177.6353]
[1717487571253,2.2355,165.51,165.5,177.6353]
[1717487571435,9.2655,165.51,165.5,177.6353]
[1717487574155,2.2355,165.51,165.5,177.6353]
[1717487576450,9.2654,165.52,165.5,177.6353]
[1717487576835,2.2354,165.52,165.5,177.6353]
[1717487577037,9.2654,165.52,165.5,177.6353]
[1717487578161,2.2354,165.52,165.5,177.6353]
[1717487578764,9.2654,165.52,165.5,177.6353]
[1717487579340,2.2355,165.51,165.5,177.6353]
[1717487579566,4.4697,165.56,165.51,120.0]
[1717487579749,13.086,165.6,165.51,120.0]
[1717487579750,2.235,165.55,165.52,0.17]
[1717487580061,43.4384,165.6,165.54,6.5984]
[1717487580062,2.2347,165.57,165.54,6.5984]
[1717487581453,2.2348,165.56,165.54,6.5984]
[1717487581954,7.03,165.55,165.52,6.5718]
[1717487583443,7.03,165.54,165.52,6.5718]
[1717487583669,7.03,165.54,165.52,0.34]
[1717487585479,7.03,165.53,165.5,177.6353]
[1717487585648,7.03,165.53,165.51,0.17]
[1717487586949,7.03,165.54,165.51,0.17]
[1717487588388,2.235,165.55,165.51,0.17]
[1717487588545,2.235,165.55,165.51,126.9723]
[1717487591855,2.2351,165.54,165.51,126.9723]
[1717487592055,4.4694,165.57,165.51,0.34]
[1717487592056,9.2653,165.53,165.51,0.34]
[1717487592255,9.2653,165.53,165.5,177.6353]
[1717487592660,7.03,165.52,165.5,177.6353]
[1717487592851,11.1736,165.57,165.5,297.6353]
[1717487592852,2.2351,165.54,165.5,297.6353]
[1717487593054,7.03,165.53,165.5,303.7134]
[1717487593393,9.2651,165.54,165.5,303.7134]
[1717487593970,2.2352,165.53,165.5,183.7134]
[1717487594374,9.2652,165.53,165.5,183.7134]
[1717487594682,11.1736,165.57,165.5,183.7134]
[1717487594683,2.2355,165.51,165.5,177.6353]
[1717487594849,9.2655,165.51,165.5,177.6353]
[1717487597470,13.7365,165.51,165.5,177.6353]
[1717487597671,29.385,165.51,165.5,177.6353]
[1717487598674,20.443,165.51,165.5,177.6353]
[1717487606602,6.7065,165.51,165.5,177.6353]
[1717487606809,13.7365,165.51,165.5,177.6353]
[1717487607010,9.2655,165.51,165.5,177.6353]
[1717487607709,2.2355,165.51,165.5,177.6353]
[1717487607906,9.2655,165.51,165.5,177.6353]
[1717487608407,2.2355,165.51,165.5,177.6353]
[1717487608714,4.4704,165.54,165.5,177.6353]
[1717487608886,7.03,165.51,165.5,177.6353]
[1717487609710,2.2354,165.52,165.5,177.6353]
[1717487610222,7.03,165.51,165.5,177.6353]
[1717487616593,2.2353,165.53,165.5,177.6353]
[1717487616894,7.03,165.51,165.5,177.6353]
[1717487619314,2.2353,165.53,165.5,177.6353]
[1717487619615,7.03,165.52,165.5,177.6353]
[1717487620028,2.2353,165.53,165.5,177.6353]
[1717487620518,7.03,165.52,165.5,177.6353]
[1717487624116,2.2353,165.53,165.5,177.6353]
[1717487624300,9.2653,165.53,165.5,177.6353]
[1717487624994,2.2353,165.53,165.5,177.6353]
[1717487625196,9.2653,165.53,165.5,177.6353]
[1717487627025,2.2353,165.52,165.5,177.6353]
[1717487627327,7.03,165.51,165.5,177.6353]
[1717487628819,2.2353,165.52,165.5,177.6353]
[1717487629192,7.03,165.51,165.5,177.6353]
[1717487632922,2.2353,165.52,165.5,177.6353]
[1717487633096,2.2352,165.53,165.5,177.6353]
[1717487633511,7.03,165.52,165.5,177.6353]
[1717487634922,9.2652,165.53,165.5,177.6353]
[1717487636419,7.03,165.52,165.5,177.6353]
[1717487637796,2.2353,165.52,165.5,177.6353]
[1717487637997,9.2653,165.52,165.5,177.6353]
[1717487641311,7.03,165.52,165.5,177.6353]
[1717487642120,9.2655,165.51,165.5,177.6353]
[1717487643623,2.2355,165.51,165.5,177.6353]
[1717487643827,9.2655,165.51,165.5,177.6353]
[1717487644710,2.2355,165.51,165.5,177.6353]
[1717487644914,9.2655,165.51,165.5,177.6353]
[1717487646627,13.7365,165.51,165.5,177.6353]
[1717487655528,20.443,165.51,165.5,177.6353]
[1717487671824,9.2655,165.51,165.5,177.6353]
[1717487672025,2.2355,165.51,165.5,177.6353]